Cogmind - Beta 16 @@@ ROGUE MODE // 2025.11.17 @ 16:54:42 Player: MolePlayingNice Result: Destroyed by P-70 Sage with High-powered Shock Rifle Performance ------------- Evolutions (6) 3000 Regions Visited (21) 4200 Robots Destroyed (262) 1310 Value Destroyed (17042) 17042 Prototype IDs (22) 440 Alien Tech Used (0) 0 Bonus (12675) 12675 TOTAL SCORE: 38667 Bonus ------- High Alert Combat Kills 4176 Follower Combat Kills 3089 Entered Garrisons 1600 Used RIF Installer 4000 Friendly Fire -190 Cogmind --------- Core Integrity 0/1150 Matter 263/300 Energy 78/100 System Corruption 20% Temperature Cool (0) Movement Hovering (66) Location -4/Factory Parts ------- > --- POWER (1) -------- (None) > --- PROPULSION (5) --- Improved Gyrokinetic Inverter Improved Gyrokinetic Inverter > --- UTILITY (8) ------ Advanced Coolant Injector Spectral Analyzer Advanced Targeting Computer Advanced Targeting Computer Advanced System Shield Relay Coupler [Heavy] (1) > --- WEAPON (5) ------- Improved Remote Datajack > --- INVENTORY (5) ---- Micro Fission Core Advanced Reaction Control System Relay Coupler [Behemoth] (16) Enhanced Force Lance Peak State ------------ > --- POWER ------------ Light Antimatter Reactor > --- PROPULSION ------- Myomer Leg Myomer Leg Myomer Leg Myomer Leg Myomer Leg > --- UTILITY ---------- Small Storage Unit Spectral Analyzer Advanced Targeting Computer Advanced Targeting Computer Advanced Weapon Cycler Advanced Reaction Control System Relay Coupler [NC] Relay Coupler [Grunt] > --- WEAPON ----------- Coil Gun Coil Gun Coil Gun Coil Gun Railgun > --- INVENTORY -------- Myomer Leg Improved Surge Thruster Relay Coupler [Heavy] Relay Coupler [Behemoth] Coil Gun Improved Remote Datajack Enhanced Force Lance [Rating: 108] Favorites ----------- Power Light Nuclear Core Engine Improved Deuterium Engine Power Core Light Nuclear Core Reactor Micro Antimatter Reactor Propulsion Light Treads Treads Light Treads Leg Aluminum Leg Hover Unit Improved Gyrokinetic Inverter Flight Unit VTOL Module Utility Advanced Visual Processing Unit Device Advanced Heat Sink Storage Large Storage Unit Processor Advanced Visual Processing Unit Hackware Relay Coupler [Grunt] Protection Light Armor Plating Weapon Coil Gun Energy Gun Medium Laser Energy Cannon Ion Cannon Ballistic Gun Coil Gun Ballistic Cannon Mini Assault Cannon Launcher Missile Launcher Special Weapon Remote Datajack Slashing Weapon Axe Piercing Weapon Enhanced Force Lance Special Melee Weapon Datajack Build | -11 -10 -10 -10 -9 -8 -8 -8 -8 -7 -7 -7 -7 -6 -6 -6 -6 -5 -5 -4 -4 -4 ------- Run | Yrd Mat Min Exi Min Mat Gar Mat Gar Fac Gar Fac Gar Fac Gar Fac Gar Fac Gar Fac Gar Fac Slots Evolved 12 | . . . . . 4 . . . 2 . . . 2 . . . 2 . 2 . . Power . | . . . . . . . . . . . . . . . . . . . . . . Propulsion 3 | . . . . . 1 . . . 1 . . . 1 . . . . . . . . Utility 6 | . . . . . 2 . . . . . . . 1 . . . 1 . 2 . . Weapon 3 | . . . . . 1 . . . 1 . . . . . . . 1 . . . . Parts Attached 280 | . 9 7 . 1 10 14 18 16 4 12 3 17 7 62 7 14 5 17 6 19 32 Power 28 | . 1 . . 1 1 1 2 1 . 3 . . . 9 1 1 . 2 1 3 1 Engine 10 | . 1 . . 1 1 1 2 . . 1 . . . 2 . . . 1 . . . Core 14 | . . . . . . . . 1 . 2 . . . 4 1 1 . 1 1 3 . Reactor 4 | . . . . . . . . . . . . . . 3 . . . . . . 1 Propulsion 82 | . 2 2 . . 4 5 6 6 . 4 1 7 5 16 2 1 1 . 1 4 15 Treads 15 | . . . . . 3 2 4 6 . . . . . . . . . . . . . Leg 22 | . 2 2 . . . 3 2 . . . . . . 1 . . . . . . 12 Wheel . | . . . . . . . . . . . . . . . . . . . . . . Hover 4 | . . . . . . . . . . . . . . 1 . . . . . . 3 Flight 41 | . . . . . 1 . . . . 4 1 7 5 14 2 1 1 . 1 4 . Utility 96 | . 3 1 . . 2 5 7 6 1 4 1 4 2 17 1 7 3 10 3 9 10 Device 32 | . 2 1 . . 1 2 2 . . . . 1 1 7 . 1 . 6 1 2 5 Storage 6 | . 1 . . . . . 1 . . . . . . 3 . . 1 . . . . Processor 12 | . . . . . . 1 . . . . . . . 4 . 1 1 . 2 1 2 Hackware 39 | . . . . . . . 3 4 1 4 1 3 . 3 1 5 1 4 . 6 3 Protection 7 | . . . . . 1 2 1 2 . . . . 1 . . . . . . . . Artifact . | . . . . . . . . . . . . . . . . . . . . . . Weapon 74 | . 3 4 . . 3 3 3 3 3 1 1 6 . 20 3 5 1 5 1 3 6 Energy Gun 5 | . 3 1 . . . . . . . . . . . . . . . . . . 1 Energy Cannon 3 | . . 2 . . . . . . . . . . . 1 . . . . . . . Ballistic Gun 48 | . . . . . 1 . . . 2 1 1 5 . 16 3 5 1 5 . 3 5 Ballistic Cannon 5 | . . . . . 2 2 . . . . . . . 1 . . . . . . . Launcher 4 | . . 1 . . . 1 1 . . . . 1 . . . . . . . . . Special Weapon 3 | . . . . . . . . . 1 . . . . 1 . . . . 1 . . Impact Weapon . | . . . . . . . . . . . . . . . . . . . . . . Slashing Weapon 3 | . . . . . . . 1 2 . . . . . . . . . . . . . Piercing Weapon 1 | . . . . . . . . . . . . . . 1 . . . . . . . Special Melee Weapon 2 | . . . . . . . 1 1 . . . . . . . . . . . . . Unidentified Prototypes 17 | . . . . . 3 . . . . . . . . 12 1 . . . . . 1 Parts Lost 91 | . . . . . . 8 5 4 . . . . . 34 1 3 . 2 1 5 28 Power 7 | . . . . . . . 2 . . . . . . 3 . . . 1 . 1 . Propulsion 39 | . . . . . . 4 1 2 . . . . . 15 1 1 . 1 . 1 13 Utility 22 | . . . . . . 3 . 2 . . . . . 7 . 1 . . . 2 7 Weapon 23 | . . . . . . 1 2 . . . . . . 9 . 1 . . 1 1 8 Highest Loss Streak 13 | . . . . . . 3 1 2 . . . . . 6 1 1 . 2 1 2 13 To Critical Strikes 1 | . . . . . . . . . . . . . . . . . . . . . 1 Average Backups 11 | 6 9 14 14 14 14 14 17 19 17 15 4 5 4 4 4 4 5 7 7 7 6 Power . | 1 1 1 1 1 1 1 . 2 2 2 . . . . . . . . . . . Propulsion 1 | 4 3 3 3 3 1 1 2 3 1 . . . . . . . . . . . . Utility 4 | . . 3 4 4 2 6 8 6 6 6 1 1 1 1 1 1 2 4 4 3 2 Weapon 4 | 1 3 4 4 4 6 5 5 6 7 6 3 2 2 2 2 2 1 2 2 2 2 Tool/Special . | . . . . . . . . . . . . . . . . . . . . . . Unused Backups 51 | . 9 8 . . 4 4 2 3 . 9 . 2 . 1 . . 1 3 . 3 2 Power 6 | . 2 . . . 1 . . 1 . 1 . . . . . . . . . . 1 Propulsion 7 | . 2 3 . . 1 . . . . 1 . . . . . . . . . . . Utility 22 | . 2 . . . . 1 2 2 . 5 . 2 . 1 . . 1 3 . 2 1 Weapon 15 | . 3 5 . . 2 2 . . . 2 . . . . . . . . . 1 . Tool/Special 1 | . . . . . . 1 . . . . . . . . . . . . . . . Average Slot Usage (%) 92 | . 97 100 100 100 88 96 96 99 99 98 92 95 99 82 93 91 88 82 87 86 73 Engine 4 | . 14 14 14 14 9 9 6 3 . 2 7 7 6 . . . . 2 . . . Core 2 | . . . . . . . . 5 7 4 . . . 2 6 6 5 1 5 4 1 Treads 8 | . . . . . 25 11 9 26 30 21 . . . . . . . . . . . Leg 7 | . 28 28 28 28 . 14 17 . . . . . . . . . . . . . 10 Flight 9 | . . . . . . . . . . 8 30 30 33 24 27 25 18 16 15 14 5 Device 9 | . 11 14 14 14 17 11 6 3 1 3 6 7 9 9 10 11 11 11 15 11 7 Storage 6 | . 14 14 14 14 9 9 9 9 7 5 . . . . . . 1 5 5 5 3 Processor 7 | . . . . . . 8 9 9 7 7 7 7 6 10 9 6 5 5 9 10 14 Hackware 7 | . . . . . . . 6 8 13 13 15 15 13 8 11 12 15 9 10 13 12 Protection 2 | . . . . . 8 5 4 6 . . . . 2 . . . . . . . . Energy Cannon 4 | . . 23 28 28 7 8 . . . . . . . . . . . . . . . Ballistic Gun 11 | . 10 . . . . 1 . . 19 25 15 22 25 18 19 21 18 21 22 21 12 Ballistic Cannon 5 | . . . . . 10 15 18 17 . . . . . . . . . . . . . Special Weapon 1 | . . . . . . . . . 4 2 6 . . . 4 3 5 1 2 2 1 Slashing Weapon 1 | . . . . . . . 4 7 4 . . 2 . . . . . . . . . Peak Build Rating 108 | 6 11 17 17 17 28 38 44 39 44 49 41 41 52 81 88 90 95 96 106 105 108 Average Rating 49 | 6 8 16 17 17 24 32 35 35 39 43 39 38 47 56 78 84 93 89 100 97 77 On Entrance 46 | 6 6 11 17 17 17 26 36 28 39 38 41 40 36 50 73 81 83 93 88 103 96 Avg Prop Armor Cover (%) 17 | . . . . . . 6 10 . . . . . . . . . . 3 . . 31 Naked Turns . | . . . . . . . . . . . . . . . . . . . . . . Heaviest Build 70 | 12 31 38 38 38 53 54 70 67 62 68 16 16 23 30 31 31 35 39 37 39 45 Greatest Support 125 | 20 20 27 27 27 60 60 60 60 80 80 16 16 30 34 36 38 38 38 38 37 125 Greatest Overweight (x) 14 | . 1 1 1 1 1 2 2 1 . 14 . . . 1 . . . 1 . 1 9 Average Overweight (x) . | . . 1 1 1 . . . . . . . . . . . . . . . . . Largest Inventory Capacity 20 | 8 15 15 15 15 15 15 20 20 20 20 5 5 5 5 5 5 8 8 8 8 8 Average Capacity 12 | 8 12 15 15 15 15 15 18 20 20 16 5 5 5 5 5 5 5 8 8 8 6 Most Carried 20 | 6 15 15 15 15 15 15 20 20 18 20 5 5 5 5 5 5 7 8 8 8 8 Average Carried 11 | 6 10 14 15 15 14 14 17 19 17 15 4 4 4 4 4 4 4 7 7 7 6 Final Capacity 20 | 8 15 15 15 15 15 15 20 20 20 5 5 5 5 5 5 5 8 8 8 8 5 Final Carried 20 | 6 13 15 15 15 15 15 20 19 17 5 5 5 5 5 5 5 7 8 8 8 4 Class Distribution -------------------- 16% | Mutant 10% | Bothacker-Mutant 9% | Scavenger-Sprinter 9% | Bothacker-Skirmisher 8% | Bothacker-Gunner 5% | Bothacker-Sprinter 5% | Commander-Sprinter 5% | Bothacker-Tank 5% | Scavenger-Tank 4% | Scavenger-Mutant 4% | Tank 4% | Botlord-Sprinter Dominant Class ---------------- Mutant | -10/Materials Mutant | -10/Mines Mutant | -10/Exiles Mutant | -9/Mines Tank | -8/Materials Scavenger-Tank | -8/Garrison Bothacker-Tank | -8/Materials Bothacker-Mutant | -8/Garrison Bothacker-Skirmisher | -7/Factory Bothacker-Skirmisher | -7/Garrison Commander-Sprinter | -7/Factory Scavenger-Sprinter | -7/Garrison Commander-Sprinter | -6/Factory Scavenger-Sprinter | -6/Garrison Scavenger-Sprinter | -6/Factory Bothacker-Sprinter | -6/Garrison Bothacker-Gunner | -5/Factory Bothacker-Gunner | -5/Garrison Bothacker-Gunner | -4/Factory Botlord-Sprinter | -4/Garrison Bothacker-Mutant | -4/Factory Resources | -11 -10 -10 -10 -9 -8 -8 -8 -8 -7 -7 -7 -7 -6 -6 -6 -6 -5 -5 -4 -4 -4 ----------- Run | Yrd Mat Min Exi Min Mat Gar Mat Gar Fac Gar Fac Gar Fac Gar Fac Gar Fac Gar Fac Gar Fac Matter Collected 13599 | 174 144 171 . 20 233 1021 1052 954 . 972 108 616 30 2428 257 1391 63 933 142 1522 1368 Remotely . | . . . . . . . . . . . . . . . . . . . . . . Salvage Created 10185 | . 511 178 . 134 230 838 542 358 . 1047 54 284 . 1505 43 1124 . 551 118 1179 1489 Parts 548 | . 33 25 . 8 10 49 29 35 . 44 5 18 . 70 4 49 . 29 5 64 71 Haulers Intercepted 1 | . . . . . . . . . . . . . . . . . . . . . 1 Recyclers Shooed 4 | . 2 . . . 1 . 1 . . . . . . . . . . . . . . Parts Field Recycled . | . . . . . . . . . . . . . . . . . . . . . . Retrieved Matter . | . . . . . . . . . . . . . . . . . . . . . . Parts Self-Destructed . | . . . . . . . . . . . . . . . . . . . . . . Prevented . | . . . . . . . . . . . . . . . . . . . . . . Parts Restored . | . . . . . . . . . . . . . . . . . . . . . . Kills | -11 -10 -10 -10 -9 -8 -8 -8 -8 -7 -7 -7 -7 -6 -6 -6 -6 -5 -5 -4 -4 -4 ------- Run | Yrd Mat Min Exi Min Mat Gar Mat Gar Fac Gar Fac Gar Fac Gar Fac Gar Fac Gar Fac Gar Fac Combat Hostiles Destroyed 238 | . 13 13 . 3 4 31 14 18 . 19 2 10 . 33 1 20 . 13 2 21 21 Melee 16 | . . . . . . . 4 4 . . . . . 4 . 1 . . . . 3 Guns 144 | . 13 3 . . . 4 . . . 19 2 8 . 22 1 19 . 12 2 21 18 Cannons 45 | . . 2 . 3 4 17 8 11 . . . . . . . . . . . . . AOE 32 | . . 8 . . . 9 2 3 . . . 2 . 7 . . . 1 . . . Classes Destroyed 19 | . 4 1 . 1 3 2 2 . . . . . . 3 . . . . . 1 2 Worker 6 | . . 2 . . . . 4 . . . . . . . . . . . . . . Builder 3 | . . . . . 1 . 1 . . . . . . . . . . . . . 1 Tunneler 1 | . . . . . . . . . . . . . . . . . . . . . 1 Hauler 1 | . . . . . . . . . . . . . . . . . . . . . 1 Recycler 2 | . 1 . . . 1 . . . . . . . . . . . . . . . . Operator 2 | . 1 . . . . . 1 . . . . . . . . . . . . . . Drone 1 | . . . . . . . . . . . . . . . . . . . . 1 . Watcher 1 | . . . . . . . 1 . . . . . . . . . . . . . . Swarmer 56 | . 3 11 . . . 7 2 6 . . 2 6 . 6 . 4 . 4 . 5 . Cutter 12 | . . . . . . 3 . 1 . . . . . . . . . 3 . 5 . Saboteur 5 | . . . . . . . . . . . . . . 4 . . . . . . 1 Grunt 97 | . 10 2 . 2 2 14 5 2 . 16 . 4 . 8 . 11 . 6 . 3 12 Brawler 5 | . . . . . . . 1 1 . . . . . 2 . . . . . 1 . Duelist 9 | . . . . 1 . . . 2 . 3 . . . . . 2 . . . . 1 Sentry 16 | . . . . . 1 5 4 2 . . . . . . . 3 . . . 1 . Specialist 5 | . . . . . . . . . . . . . . 3 . . . . . 2 . Hunter 22 | . . . . . 1 1 2 . . . . . . 11 . . . . . 4 3 Programmer 17 | . . . . . . 1 . 4 . 1 . . . 1 1 2 . . 2 1 4 Executioner 1 | . . . . . . . . . . . . . . 1 . . . . . . . Infiltrator 1 | . . . . . . . . . . . . . . 1 . . . . . . . Best Kill Streak 8 | . 6 4 . 3 2 8 7 3 . 7 2 4 . 6 1 5 . 6 2 4 7 Combat Bots Only 8 | . 6 3 . 3 1 8 5 3 . 7 2 4 . 6 1 5 . 6 2 4 6 Max Kills in Single Turn 4 | . 1 4 . 1 1 2 2 3 . 2 2 2 . 2 1 2 . 1 1 2 2 Gunslinging 1 | . . . . . . . . . . 1 . . . 1 . . . . . 1 1 Exploded 3 | . . 3 . . . 2 2 3 . . . 2 . 2 . . . 1 . . . Melee 1 | . . . . . . . 1 1 . . . . . 1 . 1 . . . . 1 Uniques/NPCs Destroyed . | . . . . . . . . . . . . . . . . . . . . . . Combat | -11 -10 -10 -10 -9 -8 -8 -8 -8 -7 -7 -7 -7 -6 -6 -6 -6 -5 -5 -4 -4 -4 -------- Run | Yrd Mat Min Exi Min Mat Gar Mat Gar Fac Gar Fac Gar Fac Gar Fac Gar Fac Gar Fac Gar Fac Hostile Shots Fired 1523 | . 44 27 . 12 26 131 78 79 . 57 18 37 . 385 26 85 4 75 7 130 302 Missed 578 | . 18 9 . 4 6 42 16 24 . 13 11 18 . 162 12 42 4 29 5 54 109 Hits 945 | . 26 18 . 8 20 89 62 55 . 44 7 19 . 223 14 43 . 46 2 76 193 Melee 54 | . . . . . . 4 1 4 . 9 . . . 1 . . . 4 . 6 25 Projectile 891 | . 26 18 . 8 20 85 61 51 . 35 7 19 . 222 14 43 . 42 2 70 168 AOE 11 | . . . . . . 2 . 2 . . . . . . . . . 1 . 3 3 Critical Strikes 42 | . . . . . . 7 5 6 . 4 . . . 4 . . . 3 . 3 10 Part Disruptions 3 | . . . . . . . . . . . . . . . . . . . . 1 2 Damage Taken 17161 | . 303 228 . 84 299 1343 981 1019 . 901 125 396 . 3592 263 682 . 796 148 1416 4585 Core 2937 | . 62 40 . 10 33 150 138 154 . 173 44 66 . 675 41 23 . 172 31 192 933 Absorbed by Shields 803 | . . . . . . 120 . . . . . . . 400 . . . 183 . 100 . Regen/Repaired (Parts) 939 | . . . . . . . . . . 157 . . . . 119 . . . 75 588 . Core Remaining (%) 53 | 100 . . . 55 . . . 13 . . . 59 . . . 13 . 82 . . . Volleys Fired 786 | . 45 15 . 7 27 90 25 39 3 52 9 20 . 132 19 78 12 49 6 84 74 Largest 5 | . 2 2 . 2 2 3 3 3 1 4 3 4 . 4 4 4 1 5 4 5 5 Hottest 155 | . 90 120 . 120 110 140 140 120 5 113 86 99 . 112 103 120 5 150 120 150 155 Shots Fired 1927 | . 89 24 . 14 44 180 72 84 3 144 13 44 . 369 26 237 12 108 15 233 216 Gun 1356 | . 89 10 . . . 18 . 2 . 130 6 36 . 331 10 226 . 92 12 207 187 Cannon 372 | . . 8 . 14 44 155 71 80 . . . . . . . . . . . . . Launcher 27 | . . 6 . . . 7 1 2 . . . 3 . 8 . . . . . . . Special 172 | . . . . . . . . . 3 14 7 5 . 30 16 11 12 16 3 26 29 Kinetic 1546 | . 37 . . . 27 98 70 82 . 130 6 36 . 331 10 226 . 92 12 207 182 Thermal 182 | . 52 18 . 14 17 75 1 . . . . . . . . . . . . . 5 Explosive 27 | . . 6 . . . 7 1 2 . . . 3 . 8 . . . . . . . Electromagnetic . | . . . . . . . . . . . . . . . . . . . . . . Robot Hit Streak 17 | . 7 8 . 5 7 8 10 12 4 9 8 6 . 14 9 14 5 9 5 17 15 Robot Miss Streak 10 | . 6 2 . 3 5 3 5 4 1 4 2 5 . 7 2 4 2 10 3 4 4 Penetration Max 2 | . . . . . . . . . . 1 1 1 . 1 . 2 . 1 1 1 1 Secondary Targets 35 | . 1 2 . . . . . . . 6 . 1 . 7 . 3 . 2 . 4 9 Max Gunslinging Chain 2 | . 1 1 . . . . . . . 2 . 1 . 2 . 1 . 1 . 1 2 Shots Hit Robots 1194 | . 58 13 . 7 16 81 68 69 2 86 10 21 . 232 17 130 9 56 8 131 180 Core Hits 506 | . 30 19 . 4 6 47 22 19 . 44 3 16 . 100 2 50 . 26 3 50 65 Critical Kills 16 | . . . . . . 1 . . . 2 . 1 . . . 3 . 2 . 5 2 Critical Parts Destroyed 23 | . . . . . . . . . . . . . . 4 . 8 . 4 1 2 4 Critical Strikes 57 | . 2 1 . . . 4 4 3 . 2 . 1 . 8 . 11 . 6 1 7 7 Burn 4 | . 2 1 . . . . . . . . . . . . . . . . . . 1 Meltdown 1 | . . . . . . 1 . . . . . . . . . . . . . . . Destroy 38 | . . . . . . . . . . 2 . 1 . 4 . 11 . 6 1 7 6 Blast 7 | . . . . . . 3 1 3 . . . . . . . . . . . . . Sever 3 | . . . . . . . 3 . . . . . . . . . . . . . . Impale 4 | . . . . . . . . . . . . . . 4 . . . . . . . Melee Attacks 202 | . . . . . . . 30 71 2 7 . 6 . 24 5 13 . 18 2 3 21 Impact . | . . . . . . . . . . . . . . . . . . . . . . Slashing 97 | . . . . . . . 19 58 2 7 . 6 . 5 . . . . . . . Piercing 81 | . . . . . . . . . . . . . . 19 5 13 . 18 2 3 21 Sneak Attacks 24 | . . . . . . . 11 10 . . . . . 1 . 2 . . . . . Combat Hostiles 1 | . . . . . . . 1 . . . . . . . . . . . . . . Follow-up Attacks 2 | . . . . . . . . . . . . . . 2 . . . . . . . Damage Inflicted 28087 | . 666 790 . 157 577 2982 2252 1916 . 1647 80 671 . 5325 173 3164 . 1141 210 2363 3973 Guns 16583 | . 655 97 . . . 204 . 18 . 1647 80 455 . 3159 173 2948 . 1141 210 2363 3433 Cannons 5244 | . . 137 . 157 577 2019 1041 1313 . . . . . . . . . . . . . Explosions 3355 | . . 516 . . . 759 166 278 . . . 216 . 1420 . . . . . . . Melee 2815 | . . . . . . . 1006 307 . . . . . 746 . 216 . . . . 540 Ramming 90 | . 11 40 . . . . 39 . . . . . . . . . . . . . . Kinetic 19940 | . 211 . . . 394 1440 1041 1331 . 1647 80 455 . 3159 173 2948 . 1141 210 2363 3347 Thermal 1887 | . 444 234 . 157 183 783 . . . . . . . . . . . . . . 86 Explosive 3355 | . . 516 . . . 759 166 278 . . . 216 . 1420 . . . . . . . Electromagnetic . | . . . . . . . . . . . . . . . . . . . . . . Impact . | . . . . . . . . . . . . . . . . . . . . . . Slashing 1404 | . . . . . . . 1006 307 . . . . . 91 . . . . . . . Piercing 1411 | . . . . . . . . . . . . . . 655 . 216 . . . . 540 Highest Corruption 20 | . . . . . . . 2 1 . 4 4 4 . . . 3 . . . 5 20 Average Corruption 3 | . . . . . . . 1 1 . 3 4 4 . . . 2 . . . 3 6 Corruption Purged 2 | . . . . . . . 2 . . . . . . . . . . . . . . Corruption Blocked . | . . . . . . . . . . . . . . . . . . . . . . Effects 117 | . . . . . . . 8 2 . 25 7 16 . . . 8 . . . 28 23 Message Errors 23 | . . . . . . . 2 . . 5 1 1 . . . 1 . . . 6 7 Matter Fused 32 | . . . . . . . 2 1 . 9 2 3 . . . 5 . . . 5 5 Heat Flow Errors 15 | . . . . . . . . . . 4 1 2 . . . 1 . . . 4 3 Energy Discharges 15 | . . . . . . . 2 . . 3 1 3 . . . 1 . . . 3 2 Parts Rejected 1 | . . . . . . . . . . . . . . . . . . . . . 1 Parts Fused 2 | . . . . . . . 1 . . . . 1 . . . . . . . . . Data Loss (minor) 10 | . . . . . . . . 1 . 2 1 1 . . . . . . . 4 1 Data Loss (major) 5 | . . . . . . . . . . . 1 1 . . . . . . . 3 . Misfires 5 | . . . . . . . . . . 1 . 1 . . . . . . . 2 1 Alerts 4 | . . . . . . . . . . 1 . 2 . . . . . . . . 1 Weapon Failures 5 | . . . . . . . 1 . . . . 1 . . . . . . . 1 2 Overload Shots . | . . . . . . . . . . . . . . . . . . . . . . Overflow Damage 288 | . . 7 . . . 66 41 57 . . . . . 45 . . . . . . 72 Projectiles 51 | . . . . . . 18 4 29 . . . . . . . . . . . . . Explosions 93 | . . 7 . . . 48 . 16 . . . . . 22 . . . . . . . Melee 144 | . . . . . . . 37 12 . . . . . 23 . . . . . . 72 Knockbacks 32 | . . . . . 1 11 11 9 . . . . . . . . . . . . . Impact . | . . . . . . . . . . . . . . . . . . . . . . Kinetic 30 | . . . . . 1 10 10 9 . . . . . . . . . . . . . Secondary 2 | . . . . . . 1 1 . . . . . . . . . . . . . . Self-Inflicted Damage 274 | . . 47 . . . 117 36 35 . . . . . 39 . . . . . . . Shots 7 | . . 1 . . . 3 1 1 . . . . . 1 . . . . . . . Rammed 4 | . . . . . . . 4 . . . . . . . . . . . . . . Targets Rammed 16 | . 6 4 . . . . 6 . . . . . . . . . . . . . . Kicked 10 | . 6 4 . . . . . . . . . . . . . . . . . . . Crushed 2 | . . . . . . . 2 . . . . . . . . . . . . . . Highest Temperature 339 | . 66 102 . 174 337 300 42 339 . 212 135 204 . 188 48 258 . 136 52 214 243 Average Temperature 51 | . 15 42 . 88 46 80 16 64 . 68 77 67 . 49 20 35 . 58 26 44 46 Received Heat Transfer 2823 | . 147 30 . 48 81 501 351 180 . 252 6 48 . 304 72 129 . 173 . 125 376 Effects 2 | . . . . . . 1 . 1 . . . . . . . . . . . . . Energy Bleed 2 | . . . . . . 1 . 1 . . . . . . . . . . . . . Siege Activations . | . . . . . . . . . . . . . . . . . . . . . . Martial Activations . | . . . . . . . . . . . . . . . . . . . . . . Shielding Activations . | . . . . . . . . . . . . . . . . . . . . . . Robots Disrupted . | . . . . . . . . . . . . . . . . . . . . . . Combat Hostiles . | . . . . . . . . . . . . . . . . . . . . . . Robots Corrupted 1 | . . . . . . . 1 . . . . . . . . . . . . . . Combat Hostiles . | . . . . . . . . . . . . . . . . . . . . . . Parts Fried 3 | . . . . . . . 3 . . . . . . . . . . . . . . Impact Corruptions 1 | . . . . . . . 1 . . . . . . . . . . . . . . Robots Melted 1 | . . . . . . 1 . . . . . . . . . . . . . . . Combat Hostiles 1 | . . . . . . 1 . . . . . . . . . . . . . . . Parts Melted 9 | . 1 1 . . 1 1 . 1 . . . . . . . . . . . . 4 Heat Transferred 4027 | . 1396 555 . 259 296 1221 . . . . . . . . . . . . . . 300 Parts Sabotaged 4 | . . . . . . . . . . . . . . 4 . . . . . . . Parts Stolen . | . . . . . . . . . . . . . . . . . . . . . . Parts Stripped . | . . . . . . . . . . . . . . . . . . . . . . Power Chain Reactions . | . . . . . . . . . . . . . . . . . . . . . . Alert | -11 -10 -10 -10 -9 -8 -8 -8 -8 -7 -7 -7 -7 -6 -6 -6 -6 -5 -5 -4 -4 -4 ------- Run | Yrd Mat Min Exi Min Mat Gar Mat Gar Fac Gar Fac Gar Fac Gar Fac Gar Fac Gar Fac Gar Fac Maximum Alert Level 5 | . . . . . . 4 2 5 3 4 3 5 3 5 4 4 3 2 1 3 3 Low Security (%) 17 | 100 100 100 . 100 100 4 . . . . . . . . . . 30 8 . 9 . Level 1 8 | . . . . . . 13 6 8 . . . . . . . . 60 18 100 13 20 Level 2 22 | . . . . . . 34 93 38 . 5 8 5 . 2 . . . 72 . 25 26 Level 3 24 | . . . . . . 38 . 17 100 26 91 29 100 11 15 28 7 . . 50 52 Level 4 21 | . . . . . . 10 . 29 . 67 . 30 . 53 84 71 . . . . . Level 5 5 | . . . . . . . . 6 . . . 33 . 32 . . . . . . . High Security . | . . . . . . . . . . . . . . . . . . . . . . Max Security . | . . . . . . . . . . . . . . . . . . . . . . Peak Influence 2161 | . 170 197 . 61 61 1356 661 1859 975 1444 832 1766 926 2161 1220 1462 767 665 348 1097 942 Initial 1131 | . . 55 . . . 14 661 293 975 606 758 555 926 590 1131 783 767 98 348 188 575 Average 760 | . 99 54 . 13 13 690 526 857 922 1131 764 1309 888 1515 1152 1228 253 470 303 646 651 Influence Increases 13231 | . 389 390 . 71 144 1422 547 1726 2 838 205 1301 18 2186 258 769 108 647 91 1059 1060 Destroy 0b10 Robot/C 6020 | . 260 260 . 60 80 620 320 500 . 460 60 580 . 960 40 400 . 300 60 500 560 Destroy 0b10 Robot/NC 120 | . 10 10 . . 10 . 35 . . . 5 . 5 5 10 . . . . 5 25 Destroy Leader 590 | . 50 50 . 10 20 30 72 30 . 30 12 40 2 50 12 30 . 20 10 30 92 Allied During Kill 937 | . . . . . . . 2 79 . 13 46 397 5 194 22 1 . 23 . 43 112 Trap Triggered on 0b10 30 | . . . . . . . . . . . 20 . . . . . . . . . 10 Successful Hack 186 | . 9 . . . . 14 . 16 . . . 14 6 . 19 . 48 16 . 14 30 Disable Machine 195 | . . . . . 15 . 45 30 . . 15 . . . . . . . . . 90 Anti-Garrison Action 3050 | . . . . . . 650 . 900 . 250 . 200 . 350 . 200 . 200 . 300 . Destroy Structure 753 | . . 55 . 1 19 108 43 111 2 10 2 70 . 72 5 48 . 88 6 77 36 Partial Spotted 120 | . . . . . . . . . . . 15 . . 45 45 . . . . 15 . Lose Combat Pursuer 1230 | . 60 15 . . . . 30 60 . 75 30 . . 510 105 90 60 . 15 75 105 Influence Decreases 12850 | . 246 372 161 71 121 89 1451 319 994 261 856 328 940 874 1295 426 1430 122 487 231 1776 Entered New Map 7293 | . . 88 161 . . 9 695 159 884 261 686 238 840 254 1025 336 695 42 317 81 522 Time Decay 2172 | . 246 284 . 71 121 . 326 . 110 . 160 . 100 . 160 . 160 . 100 . 334 Lost Part 910 | . . . . . . 80 50 40 . . . . . 340 10 30 . 20 10 50 280 Lost Ally 1200 | . . . . . . . 80 120 . . 10 90 . 280 100 60 50 60 60 100 190 Purge Threat 1275 | . . . . . . . 300 . . . . . . . . . 525 . . . 450 Squads Dispatched 19 | . 2 1 . 1 . . 2 . 1 . . . . . 1 . . . . . 11 Investigation 4 | . 1 1 . . . . . . . . . . . . . . . . . . 2 Extermination 2 | . . . . . . . . . . . . . . . . . . . . . 2 Reinforcement 11 | . 1 . . . . . 2 . 1 . . . . . 1 . . . . . 6 Assault 2 | . . . . 1 . . . . . . . . . . . . . . . . 1 Garrison . | . . . . . . . . . . . . . . . . . . . . . . Intercept . | . . . . . . . . . . . . . . . . . . . . . . Searches Triggered . | . . . . . . . . . . . . . . . . . . . . . . Construction Impeded 2 | . . . . . . . . . . . . . . . 1 . . . . . 1 Haulers Reinforced 2 | . . . . . . . . . . . . . . . . . . . . . 2 Active Scanning Responses . | . . . . . . . . . . . . . . . . . . . . . . Cargo Convoy Interrupts . | . . . . . . . . . . . . . . . . . . . . . . Alert ID Control Effect 33 | . . . . . . . . . . . . 2 . 6 4 2 4 5 . 4 6 Stealth | -11 -10 -10 -10 -9 -8 -8 -8 -8 -7 -7 -7 -7 -6 -6 -6 -6 -5 -5 -4 -4 -4 --------- Run | Yrd Mat Min Exi Min Mat Gar Mat Gar Fac Gar Fac Gar Fac Gar Fac Gar Fac Gar Fac Gar Fac Distress Signals 18 | . 2 . . 1 1 . 6 . . . . . . 2 2 . . . 1 . 3 Communications Jammed . | . . . . . . . . . . . . . . . . . . . . . . Distress Signals . | . . . . . . . . . . . . . . . . . . . . . . Times Spotted 527 | . 24 14 . 3 10 30 33 36 1 24 10 30 . 100 25 30 7 32 6 48 64 Peak Tracking Total 16 | . 5 3 . 3 3 8 10 3 1 8 4 9 . 16 12 7 5 8 4 11 8 Tactical Retreats 44 | . 2 1 . . . . 2 4 . 4 1 . . 12 2 3 1 . 1 5 6 Traps | -11 -10 -10 -10 -9 -8 -8 -8 -8 -7 -7 -7 -7 -6 -6 -6 -6 -5 -5 -4 -4 -4 ------- Run | Yrd Mat Min Exi Min Mat Gar Mat Gar Fac Gar Fac Gar Fac Gar Fac Gar Fac Gar Fac Gar Fac Traps Triggered 45 | . 1 . . . . 11 1 1 . 1 . 2 . 5 1 4 . 9 1 8 . Indirectly . | . . . . . . . . . . . . . . . . . . . . . . Trap Hack Attempts . | . . . . . . . . . . . . . . . . . . . . . . Triggered . | . . . . . . . . . . . . . . . . . . . . . . Disarmed . | . . . . . . . . . . . . . . . . . . . . . . Reprogrammed . | . . . . . . . . . . . . . . . . . . . . . . Reused . | . . . . . . . . . . . . . . . . . . . . . . Traps Extracted . | . . . . . . . . . . . . . . . . . . . . . . Installed . | . . . . . . . . . . . . . . . . . . . . . . Triggered 3 | . . . . . . . . . . . 2 . . . . . . . . . 1 Machines | -11 -10 -10 -10 -9 -8 -8 -8 -8 -7 -7 -7 -7 -6 -6 -6 -6 -5 -5 -4 -4 -4 ---------- Run | Yrd Mat Min Exi Min Mat Gar Mat Gar Fac Gar Fac Gar Fac Gar Fac Gar Fac Gar Fac Gar Fac Machines Disabled 51 | . . . . . 1 4 3 9 . 6 1 4 . 6 . 3 . 4 . 4 6 Max in Single Turn 2 | . . . . . 1 1 1 2 . 1 . 2 . 1 . 1 . 1 . 1 1 Garrison Access 1 | . . . . . . . . . . . . . . . . . . . . . 1 Garrison Relay 29 | . . . . . . 4 . 5 . 3 . 2 . 4 . 3 . 4 . 4 . Phase Generator 3 | . . . . . . . . 1 . . . 1 . 1 . . . . . . . Machines Repaired . | . . . . . . . . . . . . . . . . . . . . . . Machines Dismantled . | . . . . . . . . . . . . . . . . . . . . . . Machines Sabotaged . | . . . . . . . . . . . . . . . . . . . . . . Overloaded Fab Kills . | . . . . . . . . . . . . . . . . . . . . . . Hacking | -11 -10 -10 -10 -9 -8 -8 -8 -8 -7 -7 -7 -7 -6 -6 -6 -6 -5 -5 -4 -4 -4 --------- Run | Yrd Mat Min Exi Min Mat Gar Mat Gar Fac Gar Fac Gar Fac Gar Fac Gar Fac Gar Fac Gar Fac Machines Accessed 56 | . 1 2 1 . 3 4 3 3 2 2 3 2 2 1 7 3 8 2 3 2 2 Terminals 31 | . 1 . . . 1 4 1 3 1 2 2 2 . 1 2 3 3 2 . 2 1 Fabricators 4 | . . . . . . . . . . . . . 1 . 1 . 2 . . . . Repair Stations 3 | . . . . . . . . . . . . . . . 1 . 1 . 1 . . Recycling Units 1 | . . . . . . . . . . . . . . . 1 . . . . . . Scanalyzers 5 | . . . . . 1 . 1 . . . . . . . 1 . 1 . 1 . . Garrison Access 9 | . . . . . 1 . 1 . 1 . 1 . 1 . 1 . 1 . 1 . 1 Total Hacks 109 | . 2 2 1 . 6 10 13 7 3 4 4 3 3 1 16 5 13 3 4 2 7 Successful 58 | . 2 2 1 . 4 2 10 2 2 1 2 1 3 . 10 . 9 1 2 1 3 Failed 50 | . . . . . 2 8 3 5 1 3 2 2 . 1 6 5 4 2 1 1 4 Catastrophic 13 | . . . . . . 1 1 1 . . . 1 . 1 . 1 2 2 1 1 1 Database Lockouts 1 | . . . . . . . . . . . . . . . . . . . 1 . . Manual 23 | . 1 . . . 1 2 4 2 . . 2 . . 1 1 . 3 1 1 . 4 Terminals 62 | . 2 . . . 1 10 4 7 1 4 3 3 . 1 4 5 6 3 . 2 6 Fabricators 5 | . . . . . . . . . . . . . 1 . 1 . 3 . . . . Repair Stations 6 | . . . . . . . . . . . . . . . 4 . 1 . 1 . . Recycling Units 2 | . . . . . . . . . . . . . . . 2 . . . . . . Scanalyzers 20 | . . . . . 4 . 8 . . . . . . . 4 . 2 . 2 . . Garrison Access 11 | . . . . . 1 . 1 . 2 . 1 . 2 . 1 . 1 . 1 . 1 Terminal Hacks 18 | . 2 2 1 . . 1 2 2 . 1 1 1 . . . . 3 1 . 1 . Record 2 | . 1 . 1 . . . . . . . . . . . . . . . . . . Robot Schematic 1 | . . . . . . . . . . . 1 . . . . . . . . . . Open Door 3 | . . 2 . . . . . 1 . . . . . . . . . . . . . Branch Access Points 2 | . 1 . . . . . . . . . . . . . . . 1 . . . . Emergency Access Points 3 | . . . . . . 1 . . . . . 1 . . . . . . . 1 . Unreport Threat 3 | . . . . . . . 2 . . . . . . . . . 1 . . . . Hauler Manifests 1 | . . . . . . . . . . . . . . . . . 1 . . . . Garrison Registry 1 | . . . . . . . . . . 1 . . . . . . . . . . . Security Stations 2 | . . . . . . . . 1 . . . . . . . . . 1 . . . Fabricator Hacks 4 | . . . . . . . . . . . . . 1 . 1 . 2 . . . . Load Schematic 1 | . . . . . . . . . . . . . . . . . 1 . . . . Build 3 | . . . . . . . . . . . . . 1 . 1 . 1 . . . . Repair Station Hacks 2 | . . . . . . . . . . . . . . . 2 . . . . . . Scan Component 1 | . . . . . . . . . . . . . . . 1 . . . . . . Repair 1 | . . . . . . . . . . . . . . . 1 . . . . . . Recycling Unit Hacks 1 | . . . . . . . . . . . . . . . 1 . . . . . . Retrieve Components 1 | . . . . . . . . . . . . . . . 1 . . . . . . Scanalyzer 17 | . . . . . 3 . 7 . . . . . . . 4 . 2 . 1 . . Insert Component 2 | . . . . . 1 . 1 . . . . . . . . . . . . . . Analyze 3 | . . . . . 2 . 1 . . . . . . . . . . . . . . Retrieve Study 12 | . . . . . . . 5 . . . . . . . 4 . 2 . 1 . . Garrison Access Hacks 11 | . . . . . 1 . 1 . 2 . 1 . 2 . 1 . 1 . 1 . 1 Unlock Access 8 | . . . . . 1 . 1 . 1 . 1 . 1 . 1 . 1 . 1 . . Seal Access 1 | . . . . . . . . . . . . . . . . . . . . . 1 Coupler Status 2 | . . . . . . . . . 1 . . . 1 . . . . . . . . Unauthorized Hacks 5 | . . . . . . 1 . . . . . . . . 1 . 1 . . . 2 Terminals 3 | . . . . . . 1 . . . . . . . . . . . . . . 2 Botnet 2 | . . . . . . 1 . . . . . . . . . . . . . . 1 Disrupt 1 | . . . . . . . . . . . . . . . . . . . . . 1 Fabricators . | . . . . . . . . . . . . . . . . . . . . . . Repair Stations 2 | . . . . . . . . . . . . . . . 1 . 1 . . . . Mechanics 2 | . . . . . . . . . . . . . . . 1 . 1 . . . . Recycling Units . | . . . . . . . . . . . . . . . . . . . . . . Scanalyzers . | . . . . . . . . . . . . . . . . . . . . . . Garrison Access . | . . . . . . . . . . . . . . . . . . . . . . Data Cores Recovered . | . . . . . . . . . . . . . . . . . . . . . . Used . | . . . . . . . . . . . . . . . . . . . . . . Hacking Detections 42 | . 1 . . . 2 4 2 2 2 1 3 1 2 1 4 3 7 2 2 2 1 Full Trace Events 3 | . . . . . . 1 . . . . . 1 . . . 1 . . . . . Feedback Events . | . . . . . . . . . . . . . . . . . . . . . . Feedback Blocked . | . . . . . . . . . . . . . . . . . . . . . . Robot Schematics Acquired 1 | . . . . . . . . . . . 1 . . . . . . . . . . Robots Built 4 | . . . . . . . . . . . . . 4 . . . . . . . . Authchips . | . . . . . . . . . . . . . . . . . . . . . . Time 134 | . . . . . . . . . . . . . 134 . . . . . . . . Total Robot Build Rating 16 | . . . . . . . . . . . . . 16 . . . . . . . . Part Schematics Acquired 2 | . . . . . 1 . 1 . . . . . . . . . . . . . . Parts Built 4 | . . . . . . . . . . . . . . . 2 . 2 . . . . Authchips . | . . . . . . . . . . . . . . . . . . . . . . Time 133 | . . . . . . . . . . . . . . . 64 . 69 . . . . Total Part Build Rating 34 | . . . . . . . . . . . . . . . 16 . 18 . . . . Part Studies Acquired 12 | . . . . . . . 5 . . . . . . . 4 . 2 . 1 . . Parts Repaired 1 | . . . . . . . . . . . . . . . 1 . . . . . . Time 68 | . . . . . . . . . . . . . . . 68 . . . . . . Parts Recycled . | . . . . . . . . . . . . . . . . . . . . . . Recycled Matter . | . . . . . . . . . . . . . . . . . . . . . . Retrieved Matter . | . . . . . . . . . . . . . . . . . . . . . . Retrieved Components . | . . . . . . . . . . . . . . . . . . . . . . Parts Scanalyzed 2 | . . . . . 1 . 1 . . . . . . . . . . . . . . Part Schematics Acquired 2 | . . . . . 1 . 1 . . . . . . . . . . . . . . Parts Damaged 1 | . . . . . 1 . . . . . . . . . . . . . . . . Bothacking | -11 -10 -10 -10 -9 -8 -8 -8 -8 -7 -7 -7 -7 -6 -6 -6 -6 -5 -5 -4 -4 -4 ------------ Run | Yrd Mat Min Exi Min Mat Gar Mat Gar Fac Gar Fac Gar Fac Gar Fac Gar Fac Gar Fac Gar Fac Used RIF Installer 8 | . . . . . . 1 . 1 . 1 . 1 . 1 . 1 . 1 . 1 . Hotswap 1 | . . . . . . . . . . 1 . . . . . . . . . . . Code Merge 1 | . . . . . . . . . . . . . . . . . . 1 . . . Command Fork 1 | . . . . . . . . . . . . . . . . 1 . . . . . Patrol Navigation 1 | . . . . . . . . . . . . . . 1 . . . . . . . Alert ID Control 1 | . . . . . . . . . . . . 1 . . . . . . . . . Structural Interface 1 | . . . . . . . . . . . . . . . . . . . . 1 . Program Shield 1 | . . . . . . . . 1 . . . . . . . . . . . . . Robots Hacked 96 | . . . . . . . 8 3 2 6 3 3 . 10 6 10 2 12 2 14 15 Non-combat 22 | . . . . . . . . . 2 1 2 . . 2 5 . 1 . 2 . 7 Combat 74 | . . . . . . . 8 3 . 5 1 3 . 8 1 10 1 12 . 14 8 Robot Hacks Applied 124 | . . . . . . . 10 3 2 7 6 3 . 11 9 10 7 13 2 18 23 parse_system 2 | . . . . . . . . . . 1 . . . 1 . . . . . . . ignore_repairs 4 | . . . . . . . . . . . . . . . 1 . . . . . 3 drop_inventory 4 | . . . . . . . . . 2 . . . . . 1 . . . . . 1 deconstruct_bot 1 | . . . . . . . . . . . . . . 1 . . . . . . . purge_threat 7 | . . . . . . . . . . . . . . . . . 3 . . . 4 reprogram_traps 3 | . . . . . . . . . . . 2 . . . . . . . . . 1 summon_haulers 2 | . . . . . . . . . . . . . . . . . 1 . 1 . . map_route 6 | . . . . . . . . . . . 1 . . . 3 . . . . . 2 find_garrison 6 | . . . . . . . 1 . . . 1 . . . 1 . 1 . . . 2 link_fov 1 | . . . . . . . . . . . . . . . 1 . . . . . . scatter_targeting 3 | . . . . . . . . . . . . . . . . . . 1 . 1 1 spike_heat 4 | . . . . . . . 1 . . . . . . 1 . . . 1 . . 1 overload_power 4 | . . . . . . . . . . . . . . . 1 . . . . 3 . amplify_resonance 8 | . . . . . . . . . . 1 . . . . . 1 . 2 . 2 2 wipe_record 3 | . . . . . . . 1 . . . . . . . . . . 1 . . 1 disable_weapons 1 | . . . . . . . . . . . . . . . . 1 . . . . . reboot_system 6 | . . . . . . . 2 . . . . . . . . 3 . . . 1 . overwrite_iff 22 | . . . . . . . 5 . . 2 . . . 2 . 2 . 1 . 5 5 streamctrl_high 2 | . . . . . . . . 1 . . . . . . . . . 1 . . . formatsys_low 4 | . . . . . . . . . . 1 . . . 1 . . 1 . 1 . . formatsys_high 31 | . . . . . . . . 2 . 2 2 3 . 5 1 3 1 6 . 6 . Relay Couplers Released 134 | . . . . . . 20 . 27 . 16 . 9 . 16 . 15 . 14 . 16 1 Machine Destruction 123 | . . . . . . 16 . 23 . 13 . 9 . 16 . 15 . 14 . 16 1 Programmers 11 | . . . . . . 4 . 4 . 3 . . . . . . . . . . . Attached 37 | . . . . . . . 3 4 1 4 1 3 . 3 1 5 1 4 . 5 2 Merged Code Value 94 | . . . . . . . . . . . . . . . . . . 16 . 78 . Fabnet Peak Effective % . | . . . . . . . . . . . . . . . . . . . . . . Robots Rewired 16 | . . . . . . . . 4 . 3 . . . 6 . . 1 . . 2 . Allies Hacked 2 | . . . . . . . . . . . . 1 . . . . . . 1 . . Hacks Repelled . | . . . . . . . . . . . . . . . . . . . . . . Allies | -11 -10 -10 -10 -9 -8 -8 -8 -8 -7 -7 -7 -7 -6 -6 -6 -6 -5 -5 -4 -4 -4 -------- Run | Yrd Mat Min Exi Min Mat Gar Mat Gar Fac Gar Fac Gar Fac Gar Fac Gar Fac Gar Fac Gar Fac Total Allies 88 | . . . . 1 . . 5 7 . 10 2 5 4 14 1 5 3 8 1 16 6 Largest Group 13 | . . . . 1 1 . 1 4 . 8 9 11 13 13 6 2 3 5 4 8 9 Highest-Rated Group 557 | . . . . 31 31 . 29 101 . 312 328 485 369 369 186 64 89 229 183 503 557 Highest-Rated Ally 148 | . . . . 31 31 . 29 85 . 80 80 95 80 80 32 32 49 85 49 148 148 Total Orders 31 | . . . . . . . . 2 . 1 . 3 . 4 . . . . 1 20 . STAY 15 | . . . . . . . . 2 . . . 2 . 1 . . . . . 10 . FOLLOW 5 | . . . . . . . . . . . . 1 . 1 . . . . . 3 . AID 11 | . . . . . . . . . . 1 . . . 2 . . . . 1 7 . Ally Attacks 497 | . . . . . 2 . 13 52 . 10 8 63 1 128 31 13 6 30 10 46 84 Total Damage 13471 | . . . . . 43 . 297 870 . 178 139 1870 27 3026 850 444 115 874 443 1292 3003 Kills 104 | . . . . . . . 2 7 . 4 2 21 1 22 7 2 4 7 1 9 15 Allies Corrupted 5 | . . . . . . . . 1 . . . 1 . 2 . . . . 1 . . Allies Melted 1 | . . . . . . . . . . . . . . . . 1 . . . . . Intel | -11 -10 -10 -10 -9 -8 -8 -8 -8 -7 -7 -7 -7 -6 -6 -6 -6 -5 -5 -4 -4 -4 ------- Run | Yrd Mat Min Exi Min Mat Gar Mat Gar Fac Gar Fac Gar Fac Gar Fac Gar Fac Gar Fac Gar Fac Active Infowar (turns) 15196 | . . . . . 489 2155 730 2565 232 1208 322 654 201 1723 333 835 330 1010 206 1498 705 Optics 14707 | . . . . . . 2155 730 2565 232 1208 322 654 201 1723 333 835 330 1010 206 1498 705 Seismic 489 | . . . . . 489 . . . . . . . . . . . . . . . . Robot Analysis Total . | . . . . . . . . . . . . . . . . . . . . . . Derelict Logs Recovered 4 | . . 2 . 2 . . . . . . . . . . . . . . . . . Drone Launches . | . . . . . . . . . . . . . . . . . . . . . . Drone Recoveries . | . . . . . . . . . . . . . . . . . . . . . . Exploration | -11 -10 -10 -10 -9 -8 -8 -8 -8 -7 -7 -7 -7 -6 -6 -6 -6 -5 -5 -4 -4 -4 ------------- Run | Yrd Mat Min Exi Min Mat Gar Mat Gar Fac Gar Fac Gar Fac Gar Fac Gar Fac Gar Fac Gar Fac Turns Passed 17949 | 2 578 1166 509 310 494 2289 730 2565 232 1208 322 654 201 1723 333 835 330 1010 206 1498 754 Spaces Moved 16163 | 2 244 455 262 148 232 964 213 1075 133 786 504 1017 302 2487 704 1349 716 1395 355 2080 740 Core 245 | . . . . . . . . . . . . . . . . . . . . . 245 Treads 2390 | . . . . . 232 458 76 1075 133 416 . . . . . . . . . . . Legs 1847 | 2 244 455 262 148 . 506 137 . . . . . . . . . . . . . 93 Wheels . | . . . . . . . . . . . . . . . . . . . . . . Hover 24 | . . . . . . . . . . . . . . . . . . . . . 24 Flight 11657 | . . . . . . . . . . 370 504 1017 302 2487 704 1349 716 1395 355 2080 378 Fastest Speed 23 | 120 120 190 195 195 160 160 160 160 160 26 26 26 23 23 25 31 31 35 34 30 30 Average Speed 72 | 120 162 194 195 195 163 202 179 187 160 111 26 26 24 30 28 31 34 39 34 32 55 Slowest Speed 1155 | 120 190 195 195 195 240 320 320 240 160 1155 26 26 28 119 35 35 35 115 35 117 390 Overloaded Moves 11 | . . . . . . . . . . . . . . . . . . . . . 11 Propulsion Burnouts . | . . . . . . . . . . . . . . . . . . . . . . Robots Hopped 58 | . . . . . . . . . . . 5 . 4 3 10 5 9 5 2 2 13 Potential Cave-ins . | . . . . . . . . . . . . . . . . . . . . . . Cave-ins Triggered . | . . . . . . . . . . . . . . . . . . . . . . Exploration Rate (%) 48 | 2 38 86 67 43 26 89 33 91 5 49 15 93 7 91 19 71 18 92 7 98 19 Regions Visited 21 Branch Regions 3 Pre-discovered Areas 1 | . . . . 1 . . . . . . . . . . . . . . . . . Known Exits Taken 9 | . 1 . . . 1 . 1 . 1 . 1 . 1 . 1 . 1 . 1 . . Unknown Exits Taken 4 | 1 . 1 1 1 . . . . . . . . . . . . . . . . . Scrap Searched 3 | . . 2 . 1 . . . . . . . . . . . . . . . . . Spaces Dug 121 | . . 26 . . 1 29 3 17 2 . . 18 . . 5 6 . 12 1 . 1 Terrain Destroyed 545 | . . 71 . 1 24 49 48 102 2 4 . 73 . 94 5 19 . 14 1 30 8 Melee 37 | . . . . . . . . 10 2 . . 1 . . 5 5 . 12 1 . 1 Projectile 102 | . . 1 . 1 24 5 20 . . 4 . . . 2 . 11 . 2 . 28 4 AOE 397 | . . 70 . . . 44 28 92 . . . 72 . 91 . . . . . . . Terrain Rammed . | . . . . . . . . . . . . . . . . . . . . . . Walls Destroyed . | . . . . . . . . . . . . . . . . . . . . . . Machines Disabled . | . . . . . . . . . . . . . . . . . . . . . . Actions | -11 -10 -10 -10 -9 -8 -8 -8 -8 -7 -7 -7 -7 -6 -6 -6 -6 -5 -5 -4 -4 -4 --------- Run | Yrd Mat Min Exi Min Mat Gar Mat Gar Fac Gar Fac Gar Fac Gar Fac Gar Fac Gar Fac Gar Fac Total 20812 | 1 346 712 261 156 292 1147 461 1447 145 1028 680 1368 426 3214 800 1620 790 1763 426 2785 944 Wait 2444 | . 21 205 . . . 7 136 188 . 114 162 258 114 345 57 111 49 152 48 439 38 Move 16043 | 1 243 454 261 147 232 963 212 1074 133 785 494 1016 294 2481 685 1339 700 1386 351 2075 717 Hop 48 | . . . . . . . . . . . 5 . 4 2 9 4 7 3 2 2 10 Pick Up 136 | . 11 8 . . 8 14 13 13 . 9 1 4 . 6 1 9 6 13 2 10 8 Fast Attach 179 | . 2 3 . . 3 7 6 6 . 11 1 4 2 68 5 6 4 15 4 10 22 Attach 67 | . 1 . . . 5 6 3 7 2 2 1 . 1 5 1 4 2 4 2 4 17 Detach 51 | . 1 1 . . 4 1 3 4 . 3 . . . 5 1 4 3 4 2 4 11 Swap 274 | . 6 9 . 1 5 10 16 29 5 13 4 28 6 38 13 16 1 21 4 34 15 Drop 214 | . 10 13 . 1 8 11 11 12 . 15 2 17 5 44 4 10 5 20 3 12 11 Fire 786 | . 45 15 . 7 27 90 25 39 3 52 9 20 . 132 19 78 12 49 6 84 74 Melee 200 | . . . . . . . 30 71 2 7 . 6 . 22 5 13 . 18 2 3 21 Ram . | . . . . . . . . . . . . . . . . . . . . . . Kick 10 | . 6 4 . . . . . . . . . . . . . . . . . . . Crush 6 | . . . . . . . 6 . . . . . . . . . . . . . . Escape Stasis 338 | . . . . . . 38 . . . 15 . 15 . 64 . 25 . 74 . 107 . Rewire 16 | . . . . . . . . 4 . 2 1 . . 2 . 1 1 4 . 1 . Trap . | . . . . . . . . . . . . . . . . . . . . . . Miscellaneous . | . . . . . . . . . . . . . . . . . . . . . . Route ------- -11/Scrapyard -10/Materials -10/Mines (discovered 4 exits: [*Mat x2] / *Exi / *Sub) -10/Exiles -9/Mines -8/Materials (discovered 2 exits: [*Sto] / Gar) -8/Garrison (discovered 4 exits: *Fac x3 / *Mat) -8/Materials (discovered 2 exits: [*Sto] / Gar) -8/Garrison (discovered 3 exits: *Fac x3) -7/Factory -7/Garrison (discovered 3 exits: *Fac x3) -7/Factory (discovered 2 exits: [*Low] / Gar) -7/Garrison (discovered 3 exits: *Fac x3) -6/Factory -6/Garrison (discovered 3 exits: *Fac x3) -6/Factory (discovered 3 exits: *Fac x2 / Gar) -6/Garrison (discovered 3 exits: *Fac x3) -5/Factory (discovered 3 exits: Upp x2 / Gar) -5/Garrison (discovered 3 exits: *Fac x3) -4/Factory -4/Garrison (discovered 3 exits: *Fac x3) -4/Factory (discovered 1 exit: [Res]) History --------- Turn | Location | Event 1 | -11/Scrapyard | Discovered new exit (range 1) 3 | -11/Scrapyard | Entered Materials 14 | -10/Materials | Identified exit to Mines 322 | -10/Materials | Build established: Mutant 581 | -10/Materials | Entered Mines 643 | -10/Mines | Received a Rocket Launcher from a helpful Derelict 729 | -10/Mines | Met a Derelict shopkeep closing up shop 800 | -10/Mines | Discovered new exit (range 6) 824 | -10/Mines | Learned Materials garrison access intel 1088 | -10/Mines | Discovered new exit (range 8) 1107 | -10/Mines | Identified exit to Subcaves 1184 | -10/Mines | Met a Derelict who couldn't figure out how to use a Trap Extractor 1424 | -10/Mines | Found a hidden stash of uninstalled traps 1737 | -10/Mines | Deemed a non-threat by the Exiles lab entrance 1739 | -10/Mines | Discovered new exit (range 5) 1747 | -10/Mines | Entered Exiles 1747 | -10/Exiles | Found Exiles lab abandoned 2235 | -10/Exiles | Discovered new exit (range 11) 2256 | -10/Exiles | Entered Mines 2272 | -9/Mines | Learned location of Storage (-8) 2358 | -9/Mines | Assembled infested the area 2363 | -9/Mines | Assisted by a Guerilla fighting off Assembled 2525 | -9/Mines | Learned Materials emergency access door positions 2558 | -9/Mines | Discovered new exit (range 5) 2559 | -9/Mines | Met a Derelict testing a Signal Generator 2566 | -9/Mines | Entered Materials 2566 | -8/Materials | Accompanied by 1 ally 2566 | -8/Materials | Evolved 4 slots: Propulsion x1, Utility x2, Weapon x1 2568 | -8/Materials | Loaded intel: 1 garrison access location 2864 | -8/Materials | Build established: Tank 3021 | -8/Materials | Discovered new exit (range 14) 3060 | -8/Materials | Identified exit to Garrison 3060 | -8/Materials | Entered Garrison 3086 | -8/Garrison | Triggered checkpoint 3157 | -8/Garrison | Destroyed 8 combat bots 3166 | -8/Garrison | Garrison Relay disabled 3396 | -8/Garrison | Lost 3 parts (1n1u1w) 3432 | -8/Garrison | Triggered checkpoint 3465 | -8/Garrison | Garrison Relay disabled 3776 | -8/Garrison | Triggered checkpoint 3910 | -8/Garrison | Triggered checkpoint 3921 | -8/Garrison | Build established: Scavenger-Tank 3948 | -8/Garrison | Discovered new exit (range 5) 4020 | -8/Garrison | Discovered new exit (range 12) 4205 | -8/Garrison | Garrison Relay disabled 4512 | -8/Garrison | Discovered new exit (range 19) 4556 | -8/Garrison | Installed Relay Interface Framework 4692 | -8/Garrison | Triggered checkpoint 4841 | -8/Garrison | Discovered new exit (range 6) 4946 | -8/Garrison | Triggered checkpoint 5018 | -8/Garrison | Garrison Relay disabled 5274 | -8/Garrison | Build established: Bothacker-Tank 5349 | -8/Garrison | Entered Materials 5793 | -8/Materials | Core integrity fell below 50% 5923 | -8/Materials | Discovered new exit (range 5) 6072 | -8/Materials | Identified exit to Garrison 6079 | -8/Materials | Entered Garrison 6269 | -8/Garrison | Triggered checkpoint 6302 | -8/Garrison | Garrison Relay disabled 6599 | -8/Garrison | Build established: Bothacker-Mutant 6873 | -8/Garrison | Triggered checkpoint 7037 | -8/Garrison | Learned Factory security intel 7055 | -8/Garrison | Triggered checkpoint 7167 | -8/Garrison | Garrison Relay disabled 7354 | -8/Garrison | Discovered new exit (range 12) 7517 | -8/Garrison | Triggered checkpoint 7622 | -8/Garrison | Garrison Relay disabled 7665 | -8/Garrison | Triggered checkpoint 7695 | -8/Garrison | Triggered checkpoint 7761 | -8/Garrison | Garrison Relay disabled 7838 | -8/Garrison | Discovered new exit (range 3) 7875 | -8/Garrison | Spotted B-75 Beast 7875 | -8/Garrison | Spotted B-75 Beast 8054 | -8/Garrison | Build established: Scavenger-Mutant 8088 | -8/Garrison | Phase Generator disabled 8094 | -8/Garrison | Hijacked Beast 3a control node with streamctrl_high 8169 | -8/Garrison | Core integrity fell below 20% 8572 | -8/Garrison | Garrison Relay disabled 8616 | -8/Garrison | Discovered new exit (range 10) 8625 | -8/Garrison | Build established: Bothacker-Mutant 8629 | -8/Garrison | Expanded RIF knowledge: Program Shield 8644 | -8/Garrison | Entered Factory 8644 | -7/Factory | Evolved 2 slots: Propulsion x1, Weapon x1 8876 | -7/Factory | Identified exit to Garrison 8876 | -7/Factory | Entered Garrison 8910 | -7/Garrison | Triggered checkpoint 8947 | -7/Garrison | Garrison Relay disabled 8978 | -7/Garrison | Build established: Bothacker-Skirmisher 9195 | -7/Garrison | Destroyed 7 combat bots 9343 | -7/Garrison | Discovered new exit (range 13) 9416 | -7/Garrison | Triggered checkpoint 9455 | -7/Garrison | Discovered new exit (range 42) 9455 | -7/Garrison | Discovered new exit (range 7) 9455 | -7/Garrison | Discovered new exit (range 77) 9471 | -7/Garrison | Garrison Relay disabled 9502 | -7/Garrison | Garrison Relay disabled 9862 | -7/Garrison | Found embedded Infiltrators 9944 | -7/Garrison | Triggered checkpoint 9948 | -7/Garrison | Triggered checkpoint 9954 | -7/Garrison | Expanded RIF knowledge: Hotswap 10084 | -7/Garrison | Entered Factory 10084 | -7/Factory | Accompanied by 8 allies 10139 | -7/Factory | Discovered new exit (range 9) 10213 | -7/Factory | Build established: Commander-Sprinter 10302 | -7/Factory | Identified exit to Garrison 10406 | -7/Factory | Entered Garrison 10406 | -7/Garrison | Accompanied by 9 allies 10425 | -7/Garrison | Garrison Relay disabled 10495 | -7/Garrison | Phase Generator disabled 10548 | -7/Garrison | Triggered checkpoint 10550 | -7/Garrison | Triggered checkpoint 10574 | -7/Garrison | Triggered checkpoint 10574 | -7/Garrison | Found embedded Infiltrators 10594 | -7/Garrison | Discovered new exit (range 9) 10667 | -7/Garrison | Lost 3 allies 10724 | -7/Garrison | Discovered new exit (range 13) 10742 | -7/Garrison | Expanded RIF knowledge: Alert ID Control 10762 | -7/Garrison | Triggered checkpoint 10816 | -7/Garrison | Triggered checkpoint 10820 | -7/Garrison | Discovered new exit (range 13) 10918 | -7/Garrison | Triggered checkpoint 10920 | -7/Garrison | Garrison Relay disabled 10993 | -7/Garrison | Build established: Scavenger-Sprinter 11060 | -7/Garrison | Entered Factory 11060 | -6/Factory | Accompanied by 9 allies 11060 | -6/Factory | Evolved 2 slots: Propulsion x1, Utility x1 11172 | -6/Factory | Identified exit to Garrison 11246 | -6/Factory | Fabricated S-27 Virus? 11261 | -6/Factory | Entered Garrison 11261 | -6/Garrison | Accompanied by 13 allies 11281 | -6/Garrison | Triggered checkpoint 11361 | -6/Garrison | Triggered checkpoint 11362 | -6/Garrison | Triggered checkpoint 11378 | -6/Garrison | Triggered checkpoint 11420 | -6/Garrison | Expanded RIF knowledge: Patrol Navigation 11421 | -6/Garrison | Lost 9 allies 11477 | -6/Garrison | Lost 4 allies 11481 | -6/Garrison | Lost 6 parts (4n1u1w) 11500 | -6/Garrison | Phase Generator disabled 11532 | -6/Garrison | Lost 3 parts (1p2n) 11548 | -6/Garrison | Garrison Relay disabled 11653 | -6/Garrison | Discovered new exit (range 19) 11686 | -6/Garrison | Found Prototype Processor 11686 | -6/Garrison | Identified Exp. Terrain Scan Processor 11701 | -6/Garrison | Found Prototype Processor 11701 | -6/Garrison | Identified Spectral Analyzer 11727 | -6/Garrison | Triggered checkpoint 11776 | -6/Garrison | Discovered new exit (range 14) 11800 | -6/Garrison | Discovered new exit (range 14) 11808 | -6/Garrison | Triggered checkpoint 11835 | -6/Garrison | Garrison Relay disabled 11840 | -6/Garrison | Spotted Executioner 12060 | -6/Garrison | Lost 5 parts (2n1u2w) 12063 | -6/Garrison | Triggered checkpoint 12154 | -6/Garrison | Lost 5 parts (2u3w) 12209 | -6/Garrison | Core integrity fell below 50% 12299 | -6/Garrison | Garrison Relay disabled 12301 | -6/Garrison | Triggered checkpoint 12639 | -6/Garrison | Destroyed Executioner 12660 | -6/Garrison | Lost 6 parts (1p2n3w) 12674 | -6/Garrison | Garrison Relay disabled 12984 | -6/Garrison | Entered Factory 12984 | -6/Factory | Accompanied by 6 allies 13037 | -6/Factory | Discovered new exit (range 20) 13037 | -6/Factory | Discovered new exit (range 22) 13042 | -6/Factory | P-60 Hacker assimilated allied Soldier 5c 13063 | -6/Factory | Fabricated Quantum Rifle? 13130 | -6/Factory | Repaired Impulse Thruster Array 13302 | -6/Factory | Core integrity fell below 20% 13305 | -6/Factory | Lost 4 allies 13317 | -6/Factory | Identified exit to Garrison 13317 | -6/Factory | Entered Garrison 13530 | -6/Garrison | Build established: Sprinter 13589 | -6/Garrison | Triggered checkpoint 13601 | -6/Garrison | Garrison Relay disabled 13711 | -6/Garrison | Triggered checkpoint 13722 | -6/Garrison | Spotted B-90 Cyclops 13723 | -6/Garrison | Discovered new exit (range 13) 13801 | -6/Garrison | Garrison Relay disabled 13819 | -6/Garrison | Discovered new exit (range 12) 13850 | -6/Garrison | Triggered checkpoint 13893 | -6/Garrison | Spotted B-75 Beast 13904 | -6/Garrison | Build established: Bothacker-Sprinter 13929 | -6/Garrison | Discovered new exit (range 21) 13996 | -6/Garrison | Lost 3 allies 14018 | -6/Garrison | Garrison Relay disabled 14029 | -6/Garrison | Triggered checkpoint 14113 | -6/Garrison | Expanded RIF knowledge: Command Fork 14152 | -6/Garrison | Entered Factory 14152 | -5/Factory | Evolved 2 slots: Utility x1, Weapon x1 14185 | -5/Factory | Identified exit to Upper Caves 14397 | -5/Factory | Spotted B-75 Beast 14398 | -5/Factory | Fabricated Enh. Quantum Rifle? 14440 | -5/Factory | Identified exit to Garrison 14482 | -5/Factory | Entered Garrison 14504 | -5/Garrison | Triggered checkpoint 14507 | -5/Garrison | Garrison Relay disabled 14577 | -5/Garrison | Spotted B-75 Beast 14585 | -5/Garrison | Hijacked Beast 6a control node with streamctrl_high 14662 | -5/Garrison | Triggered checkpoint 14738 | -5/Garrison | Discovered new exit (range 20) 14760 | -5/Garrison | Garrison Relay disabled 14840 | -5/Garrison | Triggered checkpoint 14859 | -5/Garrison | Garrison Relay disabled 14863 | -5/Garrison | Learned Factory security intel 14891 | -5/Garrison | Discovered new exit (range 11) 14968 | -5/Garrison | Triggered checkpoint 14969 | -5/Garrison | Expanded RIF knowledge: Code Merge 15008 | -5/Garrison | Garrison Relay disabled 15012 | -5/Garrison | Triggered checkpoint 15018 | -5/Garrison | Discovered new exit (range 20) 15126 | -5/Garrison | Allies destroyed Beast 6a 15266 | -5/Garrison | Triggered checkpoint 15288 | -5/Garrison | Build established: Bothacker-Gunner 15492 | -5/Garrison | Entered Factory 15492 | -4/Factory | Accompanied by 4 allies 15492 | -4/Factory | Evolved 2 slots: Utility x2 15505 | -4/Factory | Central database locked down 15567 | -4/Factory | Spotted B-86 Titan 15698 | -4/Factory | Identified exit to Garrison 15698 | -4/Factory | Entered Garrison 15698 | -4/Garrison | Accompanied by 1 ally 15812 | -4/Garrison | Triggered checkpoint 15934 | -4/Garrison | Garrison Relay disabled 16336 | -4/Garrison | Discovered new exit (range 9) 16338 | -4/Garrison | Spotted B-86 Titan 16340 | -4/Garrison | Spotted B-75 Beast 16341 | -4/Garrison | Rewired B-75 Beast 16342 | -4/Garrison | Rewired B-90 Cyclops 16347 | -4/Garrison | Allies destroyed B-86 Titan 16351 | -4/Garrison | Allies destroyed B-75 Beast 16377 | -4/Garrison | Garrison Relay disabled 16399 | -4/Garrison | Triggered checkpoint 16502 | -4/Garrison | Triggered checkpoint 16596 | -4/Garrison | Triggered checkpoint 16688 | -4/Garrison | Build established: Botlord-Sprinter 16700 | -4/Garrison | Triggered checkpoint 16704 | -4/Garrison | Expanded RIF knowledge: Structural Interface 16726 | -4/Garrison | Discovered new exit (range 12) 16992 | -4/Garrison | Found embedded Infiltrators 16996 | -4/Garrison | Garrison Relay disabled 17016 | -4/Garrison | Triggered checkpoint 17043 | -4/Garrison | Discovered new exit (range 10) 17196 | -4/Garrison | Entered Factory 17196 | -4/Factory | Accompanied by 7 allies 17228 | -4/Factory | Discovered new exit (range 74) 17354 | -4/Factory | Lost 6 allies 17446 | -4/Factory | First assault squad dispatched 17470 | -4/Factory | Lost 3 parts (2n1w) 17681 | -4/Factory | Core integrity fell below 50% 17736 | -4/Factory | Lost 13 parts (5n2u6w) 17758 | -4/Factory | Found Prototype Processor 17758 | -4/Factory | Identified Exp. Targeting Computer 17864 | -4/Factory | Lost 4 parts (2n2u) 17879 | -4/Factory | Core integrity fell below 20% 17879 | -4/Factory | System corruption reached 10% 17950 | -4/Factory | Destroyed by P-70 Sage with High-powered Shock Rifle Last Messages --------------- 17856_ System corrupted: Energy discharge (-21). 17869_ ALERT: Alarm triggered, dispatching investigation squad. 17884_ Acquired Antigrav System. 17898_ Myomer Leg destroyed. 17901_ Destroyed Antigrav System. 17906_ Relay Coupler [NC] destroyed. 17907_ P-70 Sage destroyed. 17915_ 0F/OAE9F1M PE<3#Z/:TBA 17921_ Neutrino Reactor explodes. 17921_ Antigrav System destroyed. 17922_ Acquired Imp. Gyrokinetic Inverter. 17927_ P-70 Sage resets L-61 Swordsman, system corruption cleaned. 17929_ Myomer Leg destroyed. 17931_ Dropped Arm. Leg. 17948_ Jacked H-71 Marshal... >>find_garrison Pinpointed nearest Garrison Access: (101,47) (added to intel). Map ----- +----------------------------------------------------+ | *[!## ###??# !! %#???????# #???????????????????? | | !%* ## #????#!%! #???????# #???????????????????? | | *!!!#?##????#!!!% #??????##+###########?????????? | | *%= #???????#%! #??????# ! #?????????? | | [!=!#???????#[ ###????# #?????????? | | [*[=######### ! ##"##### """" """" #?????????? | | %*!*[ !%!=% %= =%% # """ """" #?????????? | | *=[ [!=*% [% !!% # """" """" #?????????? | | ! !]!*! % % # """" """" #?????????? | | ! ]! # #?????????? | | =]! = # """ """" #?????????? | | ###+######+##########%! # """" """" #?????????? | | # == * #?##?#[ # """" """" #?????????? | | + """=!! #????# " """" """" #?????????? | | # """%[ #????# / #?????????? | | """" # """[ ! #????# ##############?????????? | | """" # = #???## #?? #?????????? | | """" # ! #???# #?? = ??????????? | | """" # [ #???#Tk #? ???????????? | | # #???##H #? """ """????????????? | | ################????# # """ """ ???????????? | | ????????????????????+ # """ """ #?????????? | | ????????????????????# + #?????????? | | ????????????????????# # #?????????? | | ????????????????????# # "" "" #?????????? | | ????????????????????#####@#? ""T"" #?????????? | | ????????????????????????#%#? """ #?????????? | | ????????????????????????# #?? ??????????? | | ????????????????????????# ##############?????????? | | ????????????????? ??????# # ! #????????????? | | ????????????#+##+#??????# # ! #????????????? | | ????????????# #??????# # """ #????????????? | | ????????????# ########p# """ #????????????? | | ????????????# + """ "" #????????????? | | ????????????# ########## Y" #????????????? | | ??????####### # ! #?# "" #????????????? | | ??????+ + #?# #????????????? | | ??????# * # """ #?###########????????????? | | ??????# #! """ #????????????????????????? | | ??????# # """ #????????????????????????? | | ??????# # #????????????????????????? | | ?###+## ####+###????????????????????????? | | ?? #??# #########??????????????????? | | ???# #??# #! [#??????????????????? | | ???# """ """ #??# # """ #??????????????????? | | ???+ """ """ #### #! """ #??????????????????? | | ???# """ """ # """ #??????????????????? | | ???# + = #??????????????????? | | ???# ###+###########????????????? | | ???#+##/###### ## #????????????? | +----------------------------------------------------+ Best States ------------- Heat Dissipation 65 Coolant Potential 100 Energy Generation 29 Energy Capacity 350 Matter Stores 300 Matter Capacity 300 Sight Range 24 Terrain Scan Density 1010 Armor Coverage 225 Weapon Cycling 25 Evasion (%) 76 Targeting Accuracy 16 Target Analysis 6 Recoil Reduction 6 Defensive Hacking 14 Relay Coupler Types 4 Relay Coupler Value 165 Authchip Count 1 Item Schematics ----------------- Imp. VTOL Module | -8/Materials | Scanalyzed Enh. Autogun | -8/Materials | Scanalyzed Robot Schematics ------------------ O-24 Administrator | -7/Factory | Hacked Fabricated ------------ S-27 Virus | x4 | -6/Factory | Preloaded Quantum Rifle | x2 | -6/Factory | Preloaded Enh. Quantum Rifle | x2 | -5/Factory | Preloaded Repaired ---------- Impulse Thruster Array | 15% | -6/Factory Studied --------- Datajack | -8/Materials | Hacked Aluminum Leg | -8/Materials | Hacked Ion Cannon | -8/Materials | Hacked Rocket Launcher | -8/Materials | Hacked Axe | -8/Materials | Hacked Coil Gun | -6/Factory | Hacked Lgt. Fission Core | -6/Factory | Hacked Nuclear Pulse Thruster | -6/Factory | Hacked Remote Datajack | -6/Factory | Hacked Nuclear Pulse Array | -5/Factory | Hacked Lgt. Nuclear Core | -5/Factory | Hacked Autogun | -4/Factory | Hacked Alien Tech Used ----------------- None Achievements -------------- None Challenges ------------ None Game ------ Seed SurveybotVariableChronowheel Manual? 0 Play Time 03:15:26 Cumulative 400.4 hours Start 2025.11.15 @ 00:48:41 End 2025.11.17 @ 16:54:42 Sessions 9 Manual Loads 0 Difficulty Rogue Special Mode None Game No. 128 Rogue 128 Adventurer 0 Explorer 0 Win Type - Total 11 Types 3/0/5/0/1/0/1/0/0/1 Lore% 79 Gallery% 86 Achievement% 71 Wizard Run 0 Options --------- Layout 1 ASCII 0 Keyboard 1 Movement Arrows Keybinds 0 Fullscreen 1 Font 24/Smallcaps Map View 50x35 Zoom Use 0% Tactical HUD 1 Map Filters NONE Filters NONE Steam 1 RUN: 4778fbaf-afc5-4a11-8c11-28436b3d76e2